Cogmind - Beta 15 @@@ ROGUE MODE // 2025.07.21 @ 22:09:38 Player: Kabino11 Result: Destroyed by G-47 Trooper with Particle Gun Performance ------------- Evolutions (2) 1000 Regions Visited (6) 1200 Robots Destroyed (67) 335 Value Destroyed (1446) 1446 Prototype IDs (24) 480 Alien Tech Used (0) 0 Bonus (358) 358 TOTAL SCORE: 4819 Bonus ------- High Alert Combat Kills 58 Aligned with FarCom 300 Cogmind --------- Core Integrity 0/550 Matter 223/300 Energy 252/325 System Corruption 0% Temperature Cool (18) Movement Core (250) Ox4 Location -8/Materials Parts ------- > --- POWER (2) -------- Improved Ion Engine Light Nuclear Core > --- PROPULSION (4) --- (None) > --- UTILITY (3) ------ Heat Sink Hacking Suite > --- WEAPON (2) ------- (None) > --- INVENTORY (5) ---- Light Nuclear Core Large Matter Pod (150) Sensor Array Datajack Peak State ------------ > --- POWER ------------ Light Ion Engine > --- PROPULSION ------- Flight Unit Flight Unit Cesium-ion Thruster > --- UTILITY ---------- Heat Sink Advanced Targeting Computer Hacking Suite > --- WEAPON ----------- AWS/Thermal > --- INVENTORY -------- Large Matter Pod Sensor Array Rocket Launcher Datajack [Rating: 29] Favorites ----------- Power Light Ion Engine Engine Light Ion Engine Power Core Light Nuclear Core Propulsion Flight Unit Wheel Wheel Hover Unit Hover Unit Flight Unit Flight Unit Utility Heat Sink Device Heat Sink Storage Medium Matter Pod Processor Targeting Computer Hackware Hacking Suite Protection Light Armor Plating Weapon Assault Rifle Energy Gun AWS/Thermal Ballistic Gun Assault Rifle Launcher Grenade Launcher Slashing Weapon Blade Saw Special Melee Weapon Datajack Build | -11 -10 -9 -9 -9 -8 -8 ------- Run | Yrd Mat Mat Min Exi Min Mat Slots Evolved 4 | . . 2 . . . 2 Power 1 | . . 1 . . . . Propulsion 2 | . . 1 . . . 1 Utility 1 | . . . . . . 1 Weapon . | . . . . . . . Parts Attached 46 | 6 9 13 2 1 4 11 Power 10 | 1 2 3 . . 1 3 Engine 8 | 1 2 3 . . 1 1 Core 2 | . . . . . . 2 Reactor . | . . . . . . . Propulsion 11 | 2 2 3 . . 2 2 Treads . | . . . . . . . Leg . | . . . . . . . Wheel 2 | 2 . . . . . . Hover 1 | . 1 . . . . . Flight 8 | . 1 3 . . 2 2 Utility 12 | 1 3 3 2 . 1 2 Device 3 | . . 2 1 . . . Storage 1 | 1 . . . . . . Processor 4 | . 2 . 1 . 1 . Hackware 1 | . . . . . . 1 Protection 3 | . 1 1 . . . 1 Artifact . | . . . . . . . Weapon 13 | 2 2 4 . 1 . 4 Energy Gun 4 | 1 1 . . 1 . 1 Energy Cannon . | . . . . . . . Ballistic Gun 2 | 1 . 1 . . . . Ballistic Cannon . | . . . . . . . Launcher 5 | . 1 3 . . . 1 Special Weapon . | . . . . . . . Impact Weapon . | . . . . . . . Slashing Weapon 1 | . . . . . . 1 Piercing Weapon . | . . . . . . . Special Melee Weapon 1 | . . . . . . 1 Unidentified Prototypes 1 | . . . . . . 1 Parts Lost 15 | . . 5 . . . 10 Power 3 | . . 2 . . . 1 Propulsion 3 | . . . . . . 3 Utility 3 | . . 1 . . . 2 Weapon 6 | . . 2 . . . 4 Highest Loss Streak 4 | . . 3 . . . 4 To Critical Strikes . | . . . . . . . Average Backups 4 | 1 4 4 4 4 4 4 Power . | . . . . . . . Propulsion . | . 1 . . . . . Utility 1 | . 1 2 3 2 2 2 Weapon 1 | . 1 1 1 1 1 . Tool/Special . | . . . . . . . Unused Backups 10 | . 6 2 . 1 . 1 Power . | . . . . . . . Propulsion 3 | . 3 . . . . . Utility 4 | . 1 1 . 1 . 1 Weapon 3 | . 2 1 . . . . Tool/Special . | . . . . . . . Average Slot Usage (%) 81 | . 96 81 100 93 77 52 Engine 12 | . 14 12 22 19 11 3 Wheel 8 | . 28 13 . . . . Flight 18 | . . 13 33 33 33 15 Device 6 | . . 1 11 11 11 9 Storage 1 | . 4 . . . . . Processor 9 | . 11 11 10 11 11 5 Hackware 1 | . . . . . . 7 Protection 3 | . 9 8 . . . . Energy Gun 3 | . . 3 . 2 11 4 Ballistic Gun 6 | . 14 7 11 8 . . Launcher 7 | . 13 11 11 8 . 2 Peak Build Rating 29 | 6 8 10 10 24 26 29 Average Rating 12 | 4 6 8 9 13 24 15 On Entrance 11 | . 6 8 9 10 23 26 Naked Turns . | . . . . . . . Heaviest Build 15 | 9 12 12 12 12 12 15 Greatest Support 20 | 20 20 20 12 12 13 13 Greatest Overweight (x) 4 | . . . . . . 4 Average Overweight (x) . | . . . . . . . Largest Inventory Capacity 5 | 5 5 5 5 5 5 5 Average Capacity 5 | 5 5 5 5 5 5 5 Most Carried 5 | 4 5 5 5 5 5 5 Average Carried 4 | 1 4 4 4 4 4 4 Final Capacity 5 | 5 5 5 5 5 5 5 Final Carried 5 | 3 5 4 5 5 5 4 Class Distribution -------------------- 48% | Mutant 41% | Scavenger-Mutant 5% | Scavenger-Sprinter 4% | Sprinter Dominant Class ---------------- Mutant | -10/Materials Mutant | -9/Materials Scavenger-Mutant | -9/Mines Scavenger-Mutant | -9/Exiles Scavenger-Mutant | -8/Mines Mutant | -8/Materials Resources | -11 -10 -9 -9 -9 -8 -8 ----------- Run | Yrd Mat Mat Min Exi Min Mat Matter Collected 1468 | 302 261 326 191 149 50 189 Remotely . | . . . . . . . Salvage Created 1440 | 75 283 601 97 . 47 337 Parts 112 | 4 23 52 4 . 3 26 Haulers Intercepted . | . . . . . . . Recyclers Shooed 3 | . . 3 . . . . Parts Field Recycled . | . . . . . . . Retrieved Matter . | . . . . . . . Parts Self-Destructed . | . . . . . . . Prevented . | . . . . . . . Kills | -11 -10 -9 -9 -9 -8 -8 ------- Run | Yrd Mat Mat Min Exi Min Mat Combat Hostiles Destroyed 48 | 1 10 19 3 . 3 12 Melee 1 | . . . . . . 1 Guns 19 | 1 3 6 1 . 3 5 AOE 28 | . 7 13 2 . . 6 Classes Destroyed 10 | 2 4 3 . . . 1 Worker 5 | 1 3 1 . . . . Builder 5 | . . 4 . . . 1 Recycler 3 | . 1 2 . . . . Operator 2 | . 1 . . . . 1 Watcher 4 | . 2 1 . . . 1 Swarmer 23 | . 6 11 . . 3 3 Cutter 1 | . . . . . . 1 Grunt 19 | 1 4 5 3 . . 6 Brawler 1 | . . 1 . . . . Sentry 4 | . . 2 . . . 2 Best Kill Streak 15 | 2 10 15 3 . 3 10 Combat Bots Only 11 | 1 3 11 3 . 3 9 Max Kills in Single Turn 4 | 1 4 4 2 . 1 3 Gunslinging . | . . . . . . . Exploded 4 | . 3 4 2 . . 3 Melee 1 | . . . . . . 1 Uniques/NPCs Destroyed . | . . . . . . . Combat | -11 -10 -9 -9 -9 -8 -8 -------- Run | Yrd Mat Mat Min Exi Min Mat Hostile Shots Fired 205 | 2 11 72 6 . 6 108 Missed 79 | 1 5 32 1 . 2 38 Hits 126 | 1 6 40 5 . 4 70 Melee 14 | . . . . . . 14 Projectile 112 | 1 6 40 5 . 4 56 Critical Strikes 11 | . . 2 . . . 9 Damage Taken 1842 | 10 91 465 61 . 31 1184 Core 669 | . 11 71 12 . 15 560 Absorbed by Shields . | . . . . . . . Core Remaining (%) 90 | 100 95 . . . 75 . Volleys Fired 70 | 3 19 31 4 . . 13 Largest 2 | 2 2 2 2 . . 2 Hottest 95 | 60 50 95 50 . . 63 Shots Fired 145 | 6 38 54 8 . 8 31 Gun 95 | 6 19 38 4 . 8 20 Cannon . | . . . . . . . Launcher 50 | . 19 16 4 . . 11 Special . | . . . . . . . Kinetic 48 | 3 19 22 4 . . . Thermal 44 | . . 16 . . 8 20 Explosive 50 | . 19 16 4 . . 11 Electromagnetic 3 | 3 . . . . . . Robot Hit Streak 12 | 6 11 10 3 . 4 12 Robot Miss Streak 6 | . 3 6 1 . 4 2 Penetration Max . | . . . . . . . Secondary Targets . | . . . . . . . Autonomous 25 | . . . . . 8 17 Shots Hit Robots 97 | 6 21 30 5 . 4 31 Core Hits 121 | 3 33 46 5 . 3 31 Critical Kills . | . . . . . . . Critical Parts Destroyed 1 | . 1 . . . . . Critical Strikes 4 | . 1 1 . . . 2 Burn 1 | . . 1 . . . . Destroy 1 | . 1 . . . . . Sever 2 | . . . . . . 2 Melee Attacks 13 | . . . . . . 13 Impact . | . . . . . . . Slashing 9 | . . . . . . 9 Piercing . | . . . . . . . Sneak Attacks . | . . . . . . . Combat Hostiles . | . . . . . . . Follow-up Attacks . | . . . . . . . Damage Inflicted 4330 | 80 941 1546 199 . 140 1424 Guns 1232 | 80 125 386 41 . 140 460 Cannons . | . . . . . . . Explosions 2979 | . 816 1160 158 . . 845 Melee 119 | . . . . . . 119 Ramming . | . . . . . . . Kinetic 397 | 38 125 193 41 . . . Thermal 793 | . . 193 . . 140 460 Explosive 2643 | . 816 824 158 . . 845 Electromagnetic 378 | 42 . 336 . . . . Impact . | . . . . . . . Slashing 119 | . . . . . . 119 Piercing . | . . . . . . . Highest Corruption . | . . . . . . . Average Corruption . | . . . . . . . Corruption Purged . | . . . . . . . Corruption Blocked . | . . . . . . . Overload Shots . | . . . . . . . Overflow Damage 104 | . 15 50 . . . 39 Projectiles . | . . . . . . . Explosions 104 | . 15 50 . . . 39 Melee . | . . . . . . . Knockbacks . | . . . . . . . Impact . | . . . . . . . Kinetic . | . . . . . . . Secondary . | . . . . . . . Self-Inflicted Damage 65 | . 22 43 . . . . Shots 4 | . 2 2 . . . . Rammed . | . . . . . . . Targets Rammed . | . . . . . . . Kicked . | . . . . . . . Crushed . | . . . . . . . Highest Temperature 211 | 6 20 211 . . . 12 Average Temperature 57 | 6 10 70 . . . 12 Received Heat Transfer 639 | 6 30 147 33 . . 423 Siege Activations . | . . . . . . . Martial Activations . | . . . . . . . Shielding Activations . | . . . . . . . Robots Disrupted . | . . . . . . . Combat Hostiles . | . . . . . . . Robots Corrupted 1 | . . 1 . . . . Combat Hostiles . | . . . . . . . Parts Fried 1 | . . 1 . . . . Impact Corruptions . | . . . . . . . Robots Melted . | . . . . . . . Combat Hostiles . | . . . . . . . Parts Melted 4 | . . 3 . . . 1 Heat Transferred 1295 | . . 518 . . 185 592 Parts Sabotaged . | . . . . . . . Parts Stolen . | . . . . . . . Parts Stripped . | . . . . . . . Power Chain Reactions 2 | . . 2 . . . . Alert | -11 -10 -9 -9 -9 -8 -8 ------- Run | Yrd Mat Mat Min Exi Min Mat Maximum Alert Level 2 | . 1 2 1 . . 1 Low Security (%) 52 | 100 64 17 29 . 100 35 Level 1 31 | . 35 5 70 . . 64 Level 2 16 | . . 76 . . . . Level 3 . | . . . . . . . Level 4 . | . . . . . . . Level 5 . | . . . . . . . High Security . | . . . . . . . Max Security . | . . . . . . . Peak Influence 614 | 20 323 614 273 . 62 369 Initial 229 | . . 123 229 . . . Average 199 | 5 123 439 223 . 18 218 Influence Increases 1858 | 25 415 667 94 . 72 585 Destroy 0b10 Robot/C 960 | 20 200 380 60 . 60 240 Destroy 0b10 Robot/NC 95 | 5 35 40 . . . 15 Destroy Leader 208 | . 44 82 10 . 10 62 Successful Hack 36 | . . . . . . 36 Disable Machine 120 | . 45 75 . . . . Destroy Structure 199 | . 76 60 24 . 2 37 Partial Spotted 15 | . 15 . . . . . Lose Combat Pursuer 225 | . . 30 . . . 195 Influence Decreases 1519 | 25 122 370 431 253 72 246 Entered New Map 784 | . . 170 361 253 . . Time Decay 585 | 25 122 150 70 . 72 146 Lost Part 150 | . . 50 . . . 100 Squads Dispatched 7 | . 1 2 . . . 4 Investigation 2 | . . . . . . 2 Extermination . | . . . . . . . Reinforcement 5 | . 1 2 . . . 2 Assault . | . . . . . . . Garrison . | . . . . . . . Intercept . | . . . . . . . Searches Triggered . | . . . . . . . Construction Impeded 1 | . . 1 . . . . Haulers Reinforced . | . . . . . . . Active Scanning Responses . | . . . . . . . Cargo Convoy Interrupts . | . . . . . . . Stealth | -11 -10 -9 -9 -9 -8 -8 --------- Run | Yrd Mat Mat Min Exi Min Mat Distress Signals 8 | . 2 3 . . . 3 Communications Jammed . | . . . . . . . Distress Signals . | . . . . . . . Times Spotted 80 | 1 14 24 3 . 2 36 Peak Tracking Total 10 | 1 4 5 3 . 2 10 Tactical Retreats 7 | . . 1 . . . 6 Traps | -11 -10 -9 -9 -9 -8 -8 ------- Run | Yrd Mat Mat Min Exi Min Mat Traps Triggered 2 | . . 1 . . . 1 Indirectly 1 | . . 1 . . . . Trap Hack Attempts . | . . . . . . . Triggered . | . . . . . . . Disarmed . | . . . . . . . Reprogrammed . | . . . . . . . Reused . | . . . . . . . Traps Extracted . | . . . . . . . Installed . | . . . . . . . Triggered . | . . . . . . . Machines | -11 -10 -9 -9 -9 -8 -8 ---------- Run | Yrd Mat Mat Min Exi Min Mat Machines Disabled 8 | . 3 5 . . . . Max in Single Turn 3 | . 1 3 . . . . Machines Repaired . | . . . . . . . Machines Dismantled . | . . . . . . . Machines Sabotaged . | . . . . . . . Overloaded Fab Kills . | . . . . . . . Hacking | -11 -10 -9 -9 -9 -8 -8 --------- Run | Yrd Mat Mat Min Exi Min Mat Machines Accessed 15 | . 2 3 . 5 . 5 Terminals 6 | . 2 2 . . . 2 Fabricators . | . . . . . . . Repair Stations . | . . . . . . . Recycling Units 1 | . . . . . . 1 Scanalyzers 3 | . . 1 . . . 2 Garrison Access . | . . . . . . . Total Hacks 86 | . 3 14 . 50 . 19 Successful 80 | . 1 11 . 50 . 18 Failed 6 | . 2 3 . . . 1 Catastrophic . | . . . . . . . Database Lockouts . | . . . . . . . Manual 3 | . . . . 3 . . Terminals 20 | . 3 9 . . . 8 Fabricators . | . . . . . . . Repair Stations . | . . . . . . . Recycling Units 1 | . . . . . . 1 Scanalyzers 15 | . . 5 . . . 10 Garrison Access . | . . . . . . . Terminal Hacks 65 | . 1 7 . 50 . 7 Record 62 | . 1 7 . 49 . 5 Alert Level 1 | . . . . . . 1 Maintenance Status 1 | . . . . . . 1 Proto ID Catalog 1 | . . . . 1 . . Fabricator Hacks . | . . . . . . . Repair Station Hacks . | . . . . . . . Recycling Unit Hacks 1 | . . . . . . 1 Process 1 | . . . . . . 1 Scanalyzer 14 | . . 4 . . . 10 Insert Component 7 | . . 2 . . . 5 Analyze 7 | . . 2 . . . 5 Garrison Access Hacks . | . . . . . . . Unauthorized Hacks . | . . . . . . . Terminals . | . . . . . . . Fabricators . | . . . . . . . Repair Stations . | . . . . . . . Recycling Units . | . . . . . . . Scanalyzers . | . . . . . . . Garrison Access . | . . . . . . . Data Cores Recovered 1 | . . . . . . 1 Used 1 | . . . . . . 1 Hacking Detections 5 | . 1 . . . . 4 Full Trace Events 3 | . . . . . . 3 Feedback Events . | . . . . . . . Feedback Blocked . | . . . . . . . Robot Schematics Acquired . | . . . . . . . Robots Built . | . . . . . . . Authchips . | . . . . . . . Time . | . . . . . . . Total Robot Build Rating . | . . . . . . . Part Schematics Acquired 7 | . . 2 . . . 5 Parts Built . | . . . . . . . Authchips . | . . . . . . . Time . | . . . . . . . Total Part Build Rating . | . . . . . . . Parts Repaired . | . . . . . . . Time . | . . . . . . . Parts Recycled . | . . . . . . . Recycled Matter 44 | . . . . . . 44 Retrieved Matter . | . . . . . . . Retrieved Components . | . . . . . . . Parts Scanalyzed 7 | . . 2 . . . 5 Part Schematics Acquired 7 | . . 2 . . . 5 Parts Damaged . | . . . . . . . Bothacking | -11 -10 -9 -9 -9 -8 -8 ------------ Run | Yrd Mat Mat Min Exi Min Mat Used RIF Installer . | . . . . . . . Robots Hacked 1 | . . . . . . 1 Non-combat . | . . . . . . . Combat 1 | . . . . . . 1 Robot Hacks Applied 2 | . . . . . . 2 parse_system 2 | . . . . . . 2 Relay Couplers Released . | . . . . . . . Fabnet Peak Effective % . | . . . . . . . Robots Rewired . | . . . . . . . Allies Hacked . | . . . . . . . Hacks Repelled . | . . . . . . . Allies | -11 -10 -9 -9 -9 -8 -8 -------- Run | Yrd Mat Mat Min Exi Min Mat Total Allies . | . . . . . . . Largest Group . | . . . . . . . Highest-Rated Group . | . . . . . . . Highest-Rated Ally . | . . . . . . . Total Orders . | . . . . . . . Ally Attacks . | . . . . . . . Total Damage . | . . . . . . . Kills . | . . . . . . . Allies Corrupted . | . . . . . . . Allies Melted . | . . . . . . . Intel | -11 -10 -9 -9 -9 -8 -8 ------- Run | Yrd Mat Mat Min Exi Min Mat Active Infowar (turns) 2 | . . . 2 . . . Sensors 2 | . . . 2 . . . Robot Analysis Total . | . . . . . . . Derelict Logs Recovered 1 | . . . 1 . . . Drone Launches . | . . . . . . . Drone Recoveries . | . . . . . . . Exploration | -11 -10 -9 -9 -9 -8 -8 ------------- Run | Yrd Mat Mat Min Exi Min Mat Turns Passed 1648 | 101 337 319 141 190 228 332 Spaces Moved 2756 | 99 296 370 356 540 627 468 Core 111 | 17 . . . . . 94 Treads . | . . . . . . . Legs . | . . . . . . . Wheels 498 | 82 296 120 . . . . Hover . | . . . . . . . Flight 2147 | . . 250 356 540 627 374 Fastest Speed 32 | 50 80 34 34 34 32 32 Average Speed 43 | 74 80 48 34 34 33 43 Slowest Speed 250 | 80 80 80 34 34 34 250 Overloaded Moves . | . . . . . . . Propulsion Burnouts . | . . . . . . . Robots Hopped 5 | . . . . . 4 1 Potential Cave-ins . | . . . . . . . Cave-ins Triggered . | . . . . . . . Exploration Rate (%) 48 | 10 46 35 58 73 83 35 Regions Visited 6 Branch Regions 3 Pre-discovered Areas 2 | . . . 1 1 . . Known Exits Taken . | . . . . . . . Unknown Exits Taken 6 | 1 1 1 1 1 1 . Scrap Searched 4 | . . . 2 . 2 . Spaces Dug . | . . . . . . . Terrain Destroyed 259 | . 100 79 37 . 2 41 Melee . | . . . . . . . Projectile 4 | . . . . . 2 2 AOE 255 | . 100 79 37 . . 39 Terrain Rammed . | . . . . . . . Walls Destroyed . | . . . . . . . Machines Disabled . | . . . . . . . Actions | -11 -10 -9 -9 -9 -8 -8 --------- Run | Yrd Mat Mat Min Exi Min Mat Total 3057 | 119 360 455 366 548 641 568 Wait 42 | 3 1 7 3 . . 28 Move 2740 | 98 295 369 355 539 618 466 Hop 5 | . . . . . 4 1 Pick Up 78 | 9 19 18 2 3 8 19 Fast Attach . | . . . . . . . Attach 38 | 6 2 10 . 1 . 19 Detach 2 | . . . . . . 2 Swap 24 | . 9 8 2 . 4 1 Drop 45 | . 15 12 . 5 7 6 Fire 70 | 3 19 31 4 . . 13 Melee 13 | . . . . . . 13 Ram . | . . . . . . . Kick . | . . . . . . . Crush . | . . . . . . . Escape Stasis . | . . . . . . . Rewire . | . . . . . . . Trap . | . . . . . . . Miscellaneous . | . . . . . . . Route ------- -11/Scrapyard -10/Materials -9/Materials (discovered 2 exits: [*Min x2]) -9/Mines -9/Exiles (discovered 2 exits: [*Min x2]) -8/Mines -8/Materials (discovered 1 exit: [*Fac]) History --------- Turn | Location | Event 2 | -11/Scrapyard | Met Revision 17 44 | -11/Scrapyard | Discovered new exit (range 8) 102 | -11/Scrapyard | Entered Materials 326 | -10/Materials | Build established: Mutant 381 | -10/Materials | Discovered new exit (range 12) 439 | -10/Materials | Entered another Materials area 439 | -9/Materials | Evolved 2 slots: Power x1, Propulsion x1 534 | -9/Materials | Destroyed 11 combat bots 626 | -9/Materials | Lost 3 parts (1p1u1w) 629 | -9/Materials | Discovered new exit (range 14) 687 | -9/Materials | Discovered new exit (range 5) 758 | -9/Materials | Entered Mines 759 | -9/Mines | Assembled infested the area 820 | -9/Mines | Discovered new exit (range 5) 899 | -9/Mines | Entered Exiles 905 | -9/Exiles | Discovered new exit (range 15) 910 | -9/Exiles | Met 8R-AWN 915 | -9/Exiles | Met EX-HEX 917 | -9/Exiles | Build established: Scavenger-Mutant 941 | -9/Exiles | Met EX-DEC 951 | -9/Exiles | Learned location of Zion (-7) 967 | -9/Exiles | Discovered new exit (range 14) 992 | -9/Exiles | Met EX-BIN 1003 | -9/Exiles | Aligned with FarCom system 1003 | -9/Exiles | Given EX-Vault access code 1028 | -9/Exiles | Opened EX-Vault 1033 | -9/Exiles | Found AWS/Thermal 1047 | -9/Exiles | Warned to stay clear of 0b10 Research branches 1089 | -9/Exiles | Left Exiles lab with AWS/Thermal 1089 | -9/Exiles | Entered Mines 1314 | -8/Mines | Discovered new exit (range 7) 1317 | -8/Mines | Entered Materials 1317 | -8/Materials | Evolved 2 slots: Propulsion x1, Utility x1 1461 | -8/Materials | Destroyed 9 combat bots 1463 | -8/Materials | Lost 3 parts (1p1n1w) 1506 | -8/Materials | Discovered new exit (range 12) 1514 | -8/Materials | Core integrity fell below 50% 1543 | -8/Materials | Lost 4 parts (2n1u1w) 1618 | -8/Materials | Core integrity fell below 20% 1649 | -8/Materials | Destroyed by G-47 Trooper with Particle Gun Last Messages --------------- Acquired Lgt. Nuclear Core. C-17 Slicer destroyed. Acquired 8 matter. Acquired Blade Saw. Dropped Lgt. Nuclear Core. Acquired Lgt. Nuclear Core. R-06 Scavenger collects Reaction Control System. Y-45 Defender Lgt. Armor Plating severed. Hvy. Particle Gun destroyed. Acquired Lgt. Armor Plating. Y-45 Defender destroyed. R-06 Scavenger collects Imp. Ion Engine. Processing Tank disabled. G-47 Trooper Particle Gun severed. Processing Tank disabled. R-06 Scavenger collects Lgt. Treads. R-06 Scavenger destroyed. Lgt. Armor Plating destroyed. Acquired Imp. Ion Engine. Blade Saw destroyed. Map ----- +----------------------------------------------------+ | ?????????????????????????????????????????????????? | | ?????????????????????????????????????????????????? | | ?????????????????????????????????????????????????? | | ?????????????????????????????????????????????????? | | ?????????????????????????????????????????????????? | | ?????????????????????????????????????????????????? | | ?????????????????????????????????????????????????? | | ?????????????????????????????????????????????????? | | ?????????????????????????????????????????????????? | | ?????????????????????????????????????????????????? | | ?????????????????????????????????????????????????? | | ?????????????????????????????????????????????????? | | ?????????????????????????????????????????????????? | | ?????????????????????????????????????????????????? | | ?????????????????????????????????????????????????? | | ?????????????????????????????????????????????????? | | ?????????????????????????????????????????????????? | | ?????????????????????????????????????????????????? | | ?????????????????????????????????????????????????? | | ?????????????????????????????????????????????????? | | ?????????????????????????????????????????????????? | | ????????????????????###########??????????????????? | | ????????????????????# [%[[= #??????????????????? | | ????????????????????# """!%"" #??????????????????? | | ????????????????????# """g""" #??????????????????? | | ????????????????????# ""=@""" #??????????????????? | | ????????????????????# """ """ #??????????????????? | | ????????????????????# """g"""Y#??????????????????? | | ????????????????????# #??????????????????? | | ????????????????????# ! #??????????????????? | | ??????????? ??????#####+#####??????????????????? | | ??????????? ####### #????????????????????? | | ?????????? g #????????????????????? | | ?????????? T #????????????????????? | | ?????????? #????????????????????? | | ???????????###+######## #????????????????????? | | ??????????????????????## ##????????????????????? | | ???????????????????????# #??????? #??????????? | | ???????????????????????# #??????? #??????????? | | ?????????????????????### #?????? #??????????? | | ?????????????????????# # #?????? #??????????? | | ?????????????????????# #?????? #??????????? | | ?????????????????????### #?????? #??????????? | | ???????????????????????# #?????? #???####???? | | ???????????????????????# #?????? ??![[==#???? | | ???????????????????????# #?????? ???![[==#???? | | ???????????????????????# #######+###? #???? | | ???????????????????????# ## ##??? | | ???????????????????????# ?? | | ???????????????????????# ?? | +----------------------------------------------------+ Best States ------------- Heat Dissipation 41 Energy Generation 15 Energy Capacity 160 Matter Stores 400 Matter Capacity 400 Sight Range 16 Robot Scan Range 14 Terrain Scan Density 10 Armor Coverage 150 Evasion (%) 63 Targeting Accuracy 8 Offensive Hacking 10 Item Schematics ----------------- Hover Unit | -9/Materials | Scanalyzed Mni. Grenade Launcher | -9/Materials | Scanalyzed Rocket Launcher | -8/Materials | Scanalyzed Sensor Array | -8/Materials | Scanalyzed Grenade Launcher | -8/Materials | Scanalyzed Datajack | -8/Materials | Scanalyzed Lrg. Matter Pod | -8/Materials | Scanalyzed Robot Schematics ------------------ None Fabricated ------------ Nothing Repaired ---------- Nothing Alien Tech Used ----------------- None Achievements -------------- Crack Shot Dynamic Key Librarian Novice Programmer One Hack Too Far Power Corrupts Remodeling Risk Taker Tourist Uninvited Guest Challenges ------------ None Game ------ Seed SkeletonConcussiveDiverter Manual? 0 Play Time 01:21:57 Cumulative 2.6 hours Start 2025.07.21 @ 20:41:32 End 2025.07.21 @ 22:09:38 Sessions 1 Manual Loads 0 Difficulty Rogue Special Mode None Game No. 3 Rogue 3 Adventurer 0 Explorer 0 Win Type - Total 0 Types 0/0/0/0/0/0/0/0/0/0 Lore% 5 Gallery% 4 Achievement% 4 Wizard Run 0 Options --------- Layout 1 ASCII 0 Keyboard 0 Movement Numpad Keybinds 0 Fullscreen 1 Font 32/SmallcapsGlow Map View 50x35 Zoom Use 0% Tactical HUD 0 Map Filters NONE Filters NONE Steam 1 RUN: 8a212a89-1583-4340-a057-a3d9ebb6b2af